fUSD/lending_fUSD_20260617
["ID","MTS","AMOUNT","RATE_DAILY","PERIOD"]
[425302923,1781675442000,-194.66171392,0.000235,2]
[425302924,1781675442000,-151.0,0.00023502,2]
[425302926,1781675442000,-151.0,0.00023612,2]
[425302931,1781675442000,-151.0,0.0002383,2]
[425302932,1781675442000,-151.0,0.00023832,2]
[425302928,1781675442000,-151.0,0.00023722,2]
[425302929,1781675442000,-20562.62505229,0.00023768,7]
[425302927,1781675442000,-151.0,0.00023667,2]
[425302952,1781675442000,-185.83,0.0002461,2]
[425302934,1781675442000,-151.0,0.00023887,2]
[425302935,1781675442000,-151.0,0.00023942,2]
[425302933,1781675442000,-2923.40609897,0.00023874,2]
[425302937,1781675442000,-1039.0,0.00024,2]
[425302930,1781675442000,-151.0,0.00023777,2]
[425302939,1781675442000,-154.0,0.00024,2]
[425302936,1781675442000,-673.0,0.00024,2]
[425302947,1781675442000,-153.8,0.00024324,2]
[425302948,1781675442000,-151.0,0.00024378,2]
[425302945,1781675442000,-27821.9601,0.00024268,7]
[425302946,1781675442000,-200.0,0.00024304,2]
[425302949,1781675442000,-3917.29124528,0.00024402,2]
[425302942,1781675442000,-11700.18,0.00024174,2]
[425302943,1781675442000,-167.189111,0.00024206,14]
[425302941,1781675442000,-601.0,0.00024,2]
[425302940,1781675442000,-478.0,0.00024,2]
[425302938,1781675442000,-335.0,0.00024,2]
[425302944,1781675442000,-194.66171392,0.0002425,2]
[425302981,1781675443000,-1053099.5953,0.000249,2]
[425302982,1781675443000,-33217.79,0.000249,2]
[425302983,1781675443000,-2300.0,0.000249,9]
[425302984,1781675443000,-151.0,0.00024926,2]
[425302987,1781675443000,-300.0,0.00024999,10]
[425302985,1781675443000,-163.5724,0.00024974,2]
[425302986,1781675443000,-163.57243009,0.00024975,2]
[425302988,1781675443000,-300.0,0.00024999,10]
[425302990,1781675443000,-500.0,0.00024999,2]
[425302989,1781675443000,-500.0,0.00024999,2]
[425302993,1781675443000,-63187.30952155,0.00025,2]
[425302991,1781675443000,-500.0,0.00024999,2]
[425303003,1781675443000,-1505.64932141,0.00025,2]
[425303000,1781675443000,-3667.08298146,0.00025,2]
[425303001,1781675443000,-1991.17472965,0.00025,2]
[425303002,1781675443000,-1058.49568936,0.00025,2]
[425302998,1781675443000,-2584.64518492,0.00025,2]
[425302995,1781675443000,-509.0,0.00025,2]
[425302994,1781675443000,-561.32,0.00025,2]
[425302999,1781675443000,-920.12573758,0.00025,2]
[425302992,1781675443000,-503.92,0.00024999,2]
[425303004,1781675445000,-478.59,0.00025,2]
[425303008,1781675446000,-1172.45,0.00025,2]
[425303006,1781675446000,-1378.22241263,0.00025,2]
[425303005,1781675446000,-1340.01105956,0.00025,2]
[425303010,1781675531000,151.0,0.0001841,2]
[425303011,1781675588000,153.286523,7.945e-05,2]
[425303012,1781675784000,250.0,0.00014,2]
[425303013,1781675826000,-631.112156,0.00014923,2]
[425303015,1781675880000,-250.0,0.0001496,2]
[425303016,1781675935000,-500.0,0.0001496,2]
[425303017,1781675986000,-964.588262,0.00014985,2]
[425303019,1781676040000,165.02,0.00013768,2]
[425303018,1781676040000,-300.0,0.00014997,2]
[425303023,1781676095000,-300.0,0.00014997,2]
[425303024,1781676148000,-166.48224055,0.00014998,2]
[425303025,1781676155000,150.0,0.00014548,2]
[425303028,1781676200000,-151.77,0.00014712,2]
[425303029,1781676228000,8173.4454515,0.000147,2]
[425303030,1781676254000,-500.0,0.00014998,2]
[425303031,1781676307000,-500.0,0.00014999,2]
[425303032,1781676429000,-311.46492794,0.00014999,2]
[425303033,1781676429000,-532.25629776,0.00014999,2]
[425303034,1781676449000,-7.75551686,0.00014999,2]
[425303037,1781676449000,-231.77414255,0.00014999,2]
[425303035,1781676449000,-576.6628916,0.00014999,2]
[425303036,1781676449000,-616.59974072,0.00014999,2]
[425303054,1781676552000,-500.0,0.00015,2]
[425303055,1781676552000,-52215.09670073,0.00015,2]
[425303053,1781676552000,-150.0,0.00014999,2]
[425303050,1781676552000,-500.0,0.00014999,2]
[425303051,1781676552000,-500.0,0.00014999,2]
[425303052,1781676552000,-435.87174594,0.00014999,2]
[425303049,1781676552000,-546.06721279,0.00014999,2]
[425303048,1781676552000,-177.09018959,0.00014999,2]
[425303047,1781676552000,-383.09012943,0.00014999,2]
[425303056,1781676565000,-37601.26328,0.00015,2]
[425303057,1781676573000,-32285.7668,0.00015,2]
[425303058,1781676573000,-7237.193082,0.00015,2]
[425303061,1781676637000,-300.0,0.00014999,2]
[425303118,1781676659000,-150.0,0.00015299,2]
[425303123,1781676659000,-166.66,0.00015964,2]
[425303120,1781676659000,-150.0,0.00015599,2]
[425303119,1781676659000,-150.0,0.00015449,2]
[425303116,1781676659000,-160.0,0.00015018,2]
[425303117,1781676659000,-150.0,0.00015149,2]
[425303113,1781676659000,-200.0,0.00015004,2]
[425303111,1781676659000,-200.0,0.00015004,2]
[425303110,1781676659000,-13180.07548887,0.00015,2]
[425303114,1781676659000,-200.0,0.00015004,7]
[425303115,1781676659000,-200.0,0.00015004,7]
[425303122,1781676659000,-276.0,0.00015749,2]
[425303112,1781676659000,-200.0,0.00015004,2]
[425303124,1781676659000,-300.0,0.00016,2]
[425303135,1781676659000,-500.0,0.00016438,2]
[425303126,1781676659000,-200.0,0.0001634,2]
[425303138,1781676659000,-500.0,0.00016438,2]
[425303136,1781676659000,-500.0,0.00016438,2]
[425303137,1781676659000,-500.0,0.00016438,2]
[425303134,1781676659000,-500.0,0.00016438,2]
[425303133,1781676659000,-500.0,0.00016438,2]
[425303132,1781676659000,-500.0,0.00016438,2]
[425303121,1781676659000,-3421.03,0.00015749,2]
[425303128,1781676659000,-500.0,0.00016438,2]
[425303130,1781676659000,-500.0,0.00016438,2]
[425303129,1781676659000,-500.0,0.00016438,2]
[425303127,1781676659000,-500.0,0.00016438,2]
[425303125,1781676659000,-166.66,0.000163,2]
[425303131,1781676659000,-500.0,0.00016438,2]
[425303178,1781676660000,-500.0,0.00016438,2]
[425303177,1781676660000,-500.0,0.00016438,2]
[425303175,1781676660000,-500.0,0.00016438,2]
[425303176,1781676660000,-500.0,0.00016438,2]
[425303174,1781676660000,-500.0,0.00016438,2]
[425303168,1781676660000,-500.0,0.00016438,2]
[425303166,1781676660000,-500.0,0.00016438,2]
[425303179,1781676660000,-500.0,0.00016438,2]
[425303169,1781676660000,-500.0,0.00016438,2]
[425303172,1781676660000,-500.0,0.00016438,2]
[425303173,1781676660000,-500.0,0.00016438,2]
[425303182,1781676660000,-500.0,0.00016438,2]
[425303183,1781676660000,-500.0,0.00016438,2]
[425303181,1781676660000,-500.0,0.00016438,2]
[425303170,1781676660000,-500.0,0.00016438,2]
[425303186,1781676660000,-500.0,0.00016438,2]
[425303184,1781676660000,-500.0,0.00016438,2]
[425303185,1781676660000,-500.0,0.00016438,2]
[425303188,1781676660000,-500.0,0.00016438,2]
[425303187,1781676660000,-500.0,0.00016438,2]
[425303189,1781676660000,-500.0,0.00016438,2]
[425303191,1781676660000,-500.0,0.00016438,2]
[425303194,1781676660000,-500.0,0.00016438,2]
[425303193,1781676660000,-550.0,0.00016438,2]
[425303190,1781676660000,-500.0,0.00016438,2]
[425303180,1781676660000,-500.0,0.00016438,2]
[425303167,1781676660000,-500.0,0.00016438,2]
[425303164,1781676660000,-500.0,0.00016438,2]
[425303163,1781676660000,-500.0,0.00016438,2]
[425303141,1781676660000,-500.0,0.00016438,2]
[425303142,1781676660000,-500.0,0.00016438,2]
[425303139,1781676660000,-500.0,0.00016438,2]
[425303140,1781676660000,-500.0,0.00016438,2]
[425303144,1781676660000,-500.0,0.00016438,2]
[425303143,1781676660000,-500.0,0.00016438,2]
[425303145,1781676660000,-500.0,0.00016438,2]
[425303147,1781676660000,-500.0,0.00016438,2]
[425303146,1781676660000,-500.0,0.00016438,2]
[425303149,1781676660000,-500.0,0.00016438,2]
[425303148,1781676660000,-500.0,0.00016438,2]
[425303152,1781676660000,-500.0,0.00016438,2]
[425303150,1781676660000,-500.0,0.00016438,2]
[425303151,1781676660000,-500.0,0.00016438,2]
[425303153,1781676660000,-500.0,0.00016438,2]
[425303154,1781676660000,-500.0,0.00016438,2]
[425303156,1781676660000,-500.0,0.00016438,2]
[425303161,1781676660000,-500.0,0.00016438,2]
[425303157,1781676660000,-500.0,0.00016438,2]
[425303155,1781676660000,-500.0,0.00016438,2]
[425303159,1781676660000,-500.0,0.00016438,2]
[425303160,1781676660000,-500.0,0.00016438,2]
[425303158,1781676660000,-500.0,0.00016438,2]
[425303162,1781676660000,-500.0,0.00016438,2]
[425303192,1781676660000,-500.0,0.00016438,2]
[425303165,1781676660000,-611.86959251,0.00016438,2]
[425303196,1781676660000,-500.0,0.00016438,2]
[425303171,1781676660000,-500.0,0.00016438,2]
[425303197,1781676660000,-500.0,0.00016438,2]
[425303227,1781676660000,-512.09132885,0.00019205,2]
[425303224,1781676660000,-250.37027773,0.00018705,2]
[425303229,1781676660000,-49166.1641418,0.00019206,5]
[425303231,1781676660000,-314.0,0.00019206,2]
[425303230,1781676660000,-150.0,0.00019206,2]
[425303233,1781676660000,-313.0,0.00019206,2]
[425303232,1781676660000,-318.0,0.00019206,2]
[425303234,1781676660000,-151.0,0.00019206,2]
[425303235,1781676660000,-316.0,0.00019206,2]
[425303238,1781676660000,-316.0,0.00019206,2]
[425303237,1781676660000,-150.0,0.00019206,2]
[425303240,1781676660000,-484.56366861,0.00019206,2]
[425303225,1781676660000,-167.8869362,0.00018711,2]
[425303239,1781676660000,-319.0,0.00019206,2]
[425303243,1781676660000,-160.0,0.00019222,2]
[425303242,1781676660000,-151.0,0.00019206,2]
[425303244,1781676660000,-150.0,0.0001947,2]
[425303246,1781676660000,-309.0,0.00019546,2]
[425303247,1781676660000,-310.0,0.00019636,2]
[425303245,1781676660000,-312.0,0.00019545,2]
[425303249,1781676660000,-152.0,0.00019723,2]
[425303248,1781676660000,-319.0,0.00019636,2]
[425303250,1781676660000,-2438.69711321,0.000199,2]
[425303251,1781676660000,-197.359704,0.0002,2]
[425303252,1781676660000,-471.0,0.0002,2]
[425303195,1781676660000,-500.0,0.00016438,2]
[425303241,1781676660000,-151.0,0.00019206,2]
[425303228,1781676660000,-500.0,0.00019205,2]
[425303236,1781676660000,-318.0,0.00019206,2]
[425303222,1781676660000,-153.05,0.00018229,2]
[425303226,1781676660000,-502.22124649,0.00019205,2]
[425303200,1781676660000,-166.66,0.00016636,2]
[425303199,1781676660000,-250.0,0.00016499,2]
[425303201,1781676660000,-514.51,0.00016804,2]
[425303204,1781676660000,-16.44508138,0.00016922,2]
[425303205,1781676660000,-240.53,0.00016922,2]
[425303202,1781676660000,-269.99,0.00016859,2]
[425303203,1781676660000,-4983.54491862,0.00016922,2]
[425303207,1781676660000,-571.8986363,0.00016922,2]
[425303206,1781676660000,-998.8755053,0.00016922,2]
[425303208,1781676660000,-666.0058584,0.00016922,2]
[425303210,1781676660000,-165.5,0.00017095,2]
[425303209,1781676660000,-166.66,0.00016972,2]
[425303198,1781676660000,-300.0,0.00016499,2]
[425303212,1781676660000,-666.46,0.00017204,2]
[425303211,1781676660000,-1926.32,0.00017122,2]
[425303220,1781676660000,-408.8156834,0.00017998,2]
[425303221,1781676660000,-1500.0,0.00018163,2]
[425303219,1781676660000,-166.66,0.00017644,2]
[425303217,1781676660000,-185.83,0.00017386,2]
[425303223,1781676660000,-694.94,0.00018472,2]
[425303213,1781676660000,-1452.91,0.00017231,2]
[425303216,1781676660000,-193.83,0.00017386,2]
[425303214,1781676660000,-166.66,0.00017308,2]
[425303215,1781676660000,-200.0,0.00017327,2]
[425303218,1781676660000,-830.41,0.00017553,2]
[425303297,1781676661000,-151.0,0.00021999,2]
[425303293,1781676661000,-151.0,0.00021999,2]
[425303295,1781676661000,-151.0,0.00021999,2]
[425303286,1781676661000,-1958.64562264,0.00021737,2]
[425303291,1781676661000,-151.0,0.00021999,2]
[425303290,1781676661000,-500.0,0.00021999,2]
[425303289,1781676661000,-151.0,0.00021999,2]
[425303283,1781676661000,-397.21611498,0.000217,2]
[425303285,1781676661000,-196.56414411,0.000217,2]
[425303294,1781676661000,-500.0,0.00021999,2]
[425303280,1781676661000,-165.31,0.00021372,2]
[425303288,1781676661000,-500.0,0.00021999,2]
[425303292,1781676661000,-500.0,0.00021999,2]
[425303303,1781676661000,-500.0,0.00021999,2]
[425303298,1781676661000,-500.0,0.00021999,2]
[425303299,1781676661000,-500.0,0.00021999,2]
[425303301,1781676661000,-500.0,0.00021999,2]
[425303300,1781676661000,-151.0,0.00021999,2]
[425303302,1781676661000,-151.0,0.00021999,2]
[425303305,1781676661000,-292.96139756,0.00021999,2]
[425303306,1781676661000,-151.0,0.00021999,2]
[425303308,1781676661000,-151.0,0.00021999,2]
[425303309,1781676661000,-151.0,0.00021999,2]
[425303307,1781676661000,-151.0,0.00021999,2]
[425303304,1781676661000,-151.0,0.00021999,2]
[425303287,1781676661000,-5000.0,0.00021918,2]
[425303296,1781676661000,-500.0,0.00021999,2]
[425303281,1781676661000,-228.72980365,0.000217,2]
[425303253,1781676661000,-867.0,0.0002,2]
[425303284,1781676661000,-189.3475568,0.000217,2]
[425303310,1781676661000,-151.0,0.00021999,2]
[425303255,1781676661000,-159.0,0.0002,2]
[425303254,1781676661000,-1497.22454223,0.0002,5]
[425303256,1781676661000,-265.0,0.0002,2]
[425303258,1781676661000,-157.0,0.0002,2]
[425303264,1781676661000,-19528.68829696,0.000207,2]
[425303261,1781676661000,-500.0,0.00020192,2]
[425303260,1781676661000,-566.0,0.0002,2]
[425303257,1781676661000,-600.8289563,0.0002,2]
[425303263,1781676661000,-5528.0,0.000206,3]
[425303262,1781676661000,-151.0,0.00020381,2]
[425303267,1781676661000,-471.0,0.00021,2]
[425303282,1781676661000,-202.17172814,0.000217,2]
[425303265,1781676661000,-3529.35076322,0.000207,2]
[425303268,1781676661000,-867.0,0.00021,2]
[425303269,1781676661000,-159.0,0.00021,2]
[425303270,1781676661000,-10380.72464927,0.00021,2]
[425303271,1781676661000,-1214.21808109,0.00021,2]
[425303274,1781676661000,-265.0,0.00021,2]
[425303275,1781676661000,-157.0,0.00021,2]
[425303273,1781676661000,-3420.58374904,0.00021,7]
[425303272,1781676661000,-200.39994813,0.00021,2]
[425303276,1781676661000,-566.0,0.00021,2]
[425303279,1781676661000,-548.08,0.00021273,2]
[425303277,1781676661000,-2438.69711316,0.00021026,2]
[425303278,1781676661000,-5528.0,0.000212,5]
[425303266,1781676661000,-1958.64562264,0.000207,2]
[425303311,1781676661000,-228.72980365,0.00022,2]
[425303259,1781676661000,-162.05871861,0.0002,2]
[425303312,1781676661000,-202.17172814,0.00022,2]
[425303340,1781676661000,-248.44145371,0.00022407,2]
[425303345,1781676661000,-228.72980365,0.000226,2]
[425303344,1781676661000,-235.17756369,0.00022417,2]
[425303350,1781676661000,-471.0,0.00023,2]
[425303349,1781676661000,-151.0,0.00022855,2]
[425303351,1781676661000,-867.0,0.00023,2]
[425303352,1781676661000,-265.0,0.00023,2]
[425303353,1781676661000,-162.0,0.00023,2]
[425303355,1781676661000,-152.0,0.00023063,30]
[425303354,1781676661000,-566.0,0.00023,2]
[425303356,1781676661000,-194.66171392,0.00023205,2]
[425303357,1781676661000,-500.0,0.0002322,2]
[425303360,1781676661000,-581.9480049,0.0002322,2]
[425303359,1781676661000,-500.0,0.0002322,2]
[425303361,1781676661000,-500.0,0.0002322,2]
[425303358,1781676661000,-500.0,0.0002322,2]
[425303363,1781676661000,-500.0,0.0002322,2]
[425303365,1781676661000,-151.0,0.00023403,2]
[425303364,1781676661000,-2438.69711316,0.00023277,2]
[425303362,1781676661000,-500.0,0.0002322,2]
[425303366,1781676661000,-224.503974,0.0002352,14]
[425303368,1781676661000,-167.51,0.00023777,4]
[425303367,1781676661000,-931.0,0.00023671,7]
[425303371,1781676661000,-151.0,0.00023951,2]
[425303369,1781676661000,-500.0,0.000239,8]
[425303370,1781676661000,-1884.88129282,0.000239,2]
[425303313,1781676661000,-397.21611498,0.00022,2]
[425303342,1781676661000,-487.48067493,0.00022407,2]
[425303341,1781676661000,-487.48067493,0.00022407,2]
[425303346,1781676661000,-189.3475568,0.000226,2]
[425303348,1781676661000,-11700.18,0.00022691,2]
[425303315,1781676661000,-196.56414411,0.00022,2]
[425303319,1781676661000,-265.0,0.00022,2]
[425303316,1781676661000,-471.0,0.00022,2]
[425303320,1781676661000,-157.0,0.00022,2]
[425303314,1781676661000,-189.3475568,0.00022,2]
[425303317,1781676661000,-867.0,0.00022,2]
[425303318,1781676661000,-161.61186986,0.00022,2]
[425303321,1781676661000,-566.0,0.00022,2]
[425303323,1781676661000,-818.46,0.00022092,2]
[425303347,1781676661000,-397.21611498,0.000226,2]
[425303324,1781676661000,-2438.69711316,0.00022151,2]
[425303325,1781676661000,-228.72980365,0.000222,2]
[425303326,1781676661000,-202.17172814,0.000222,2]
[425303328,1781676661000,-397.21611498,0.000222,2]
[425303322,1781676661000,-250.0,0.00022,2]
[425303327,1781676661000,-189.3475568,0.000222,2]
[425303343,1781676661000,-487.48067493,0.00022407,2]
[425303329,1781676661000,-578.20924308,0.00022307,2]
[425303335,1781676661000,-151.0,0.00022353,2]
[425303338,1781676661000,-189.3475568,0.000224,2]
[425303337,1781676661000,-228.72980365,0.000224,2]
[425303339,1781676661000,-397.21611498,0.000224,2]
[425303332,1781676661000,-670.58624095,0.00022307,2]
[425303330,1781676661000,-151.0,0.00022307,2]
[425303333,1781676661000,-500.0,0.00022307,2]
[425303334,1781676661000,-629.73032806,0.00022307,2]
[425303331,1781676661000,-151.0,0.00022307,2]
[425303336,1781676661000,-151.0,0.00022362,2]
[425303384,1781676662000,-2000.0,0.000242,2]
[425303380,1781676662000,-4927.02840702,0.00024012,2]
[425303381,1781676662000,-666.46,0.00024085,2]
[425303377,1781676662000,-100226.12123218,0.00024,2]
[425303375,1781676662000,-471.0,0.00024,2]
[425303374,1781676662000,-197.359704,0.00024,2]
[425303372,1781676662000,-500.0,0.00023999,2]
[425303373,1781676662000,-500.0,0.00023999,2]
[425303378,1781676662000,-265.0,0.00024,2]
[425303376,1781676662000,-867.0,0.00024,2]
[425303382,1781676662000,-230.26,0.00024128,2]
[425303379,1781676662000,-566.0,0.00024,2]
[425303394,1781676662000,-834.66079373,0.00024282,2]
[425303386,1781676662000,-152.0,0.00024259,7]
[425303395,1781676662000,-273.84430536,0.00024282,2]
[425303391,1781676662000,-820.0,0.00024282,5]
[425303392,1781676662000,-17057.99260427,0.00024282,2]
[425303390,1781676662000,-7003.6640318,0.00024276,2]
[425303393,1781676662000,-2687.24,0.00024282,2]
[425303388,1781676662000,-300.0,0.00024268,2]
[425303387,1781676662000,-152.0,0.00024259,7]
[425303383,1781676662000,-301.43,0.00024144,2]
[425303385,1781676662000,-152.0,0.00024215,7]
[425303389,1781676662000,-141791.7453347,0.00024269,2]
[425303407,1781676664000,-841.23615571,0.00024282,2]
[425303402,1781676664000,-1958.64562264,0.00022773,2]
[425303403,1781676664000,-722.11844723,0.00024282,2]
[425303405,1781676664000,-471.95013369,0.00024282,2]
[425303406,1781676664000,-659.63640365,0.00024282,2]
[425303404,1781676664000,-385.06472851,0.00024282,2]
[425303408,1781676664000,-421.93204985,0.00024282,2]
[425303412,1781676664000,-1730.84596,0.00024282,2]
[425303409,1781676664000,-5296.46493386,0.00024282,2]
[425303414,1781676664000,-1419.53603552,0.00024282,2]
[425303411,1781676664000,-273.50747401,0.00024282,2]
[425303413,1781676664000,-16053.33383822,0.00024282,2]
[425303415,1781676664000,-831.509351,0.0002381,2]
[425303416,1781676664000,-297.28447933,0.0002381,2]
[425303410,1781676664000,-2390.57640453,0.00024282,2]
[425303420,1781676665000,-706.81885601,0.00024282,2]
[425303417,1781676665000,-525.6,0.0002381,2]
[425303419,1781676665000,-304.25179231,0.0002381,2]
[425303421,1781676665000,-1220.62373377,0.00024282,2]
[425303418,1781676665000,-208.82028487,0.00022407,2]
[425303423,1781676665000,-1068.8964594,0.00024282,2]
[425303422,1781676665000,-3806.93776849,0.00024282,2]
[425303425,1781676665000,-335.819307,0.00024282,2]
[425303424,1781676665000,-9639.91819722,0.00024282,2]
[425303426,1781676665000,-7301.10329317,0.00024282,2]
[425303427,1781676671000,500.0,0.00025419,120]
[425303429,1781676671000,500.0,0.00024074,120]
[425303428,1781676671000,500.0,0.00023689,120]
[425303475,1781677215000,200.0,0.00030137,120]
[425303484,1781677540000,-141.58300736,0.00019181,2]
[425303483,1781677540000,-162.03169826,0.00019181,2]
[425303482,1781677540000,-688.68353076,0.0001859,2]
[425303481,1781677540000,-151.0,0.00018,2]
[425303489,1781677586000,250.0,0.00014,2]
[425303492,1781677632000,-54.33554424,0.00019181,2]
[425303490,1781677632000,-8.41699264,0.00019181,2]
[425303491,1781677632000,-151.0,0.00019181,2]
[425303493,1781677651000,-151.0,0.00019181,2]
[425303495,1781677651000,-152.0,0.00019181,2]
[425303494,1781677651000,-96.66445576,0.00019181,2]
[425303496,1781677651000,-151.0,0.00019181,2]
[425303499,1781677651000,-121.08539195,0.00019181,2]
[425303497,1781677651000,-151.0,0.00019181,2]
[425303498,1781677651000,-150.0,0.00019181,2]
[425303506,1781677747000,-151.0,0.00019181,2]
[425303507,1781677747000,-151.0,0.00019181,2]
[425303508,1781677747000,-151.0,0.00019182,2]
[425303505,1781677747000,-150.0,0.00019181,2]
[425303504,1781677747000,-151.0,0.00019181,2]
[425303502,1781677747000,-151.0,0.00019181,2]
[425303503,1781677747000,-28.91460805,0.00019181,2]
[425303501,1781677747000,-152.0,0.00019181,2]
[425303500,1781677747000,-153.0,0.00019181,2]
[425303512,1781677748000,-646.83743633,0.00019202,2]
[425303515,1781677748000,-500.0,0.00019202,2]
[425303514,1781677748000,-500.0,0.00019202,2]
[425303516,1781677748000,-500.0,0.00019202,2]
[425303513,1781677748000,-500.0,0.00019202,2]
[425303511,1781677748000,-500.0,0.00019202,2]
[425303509,1781677748000,-150.0,0.00019187,2]
[425303510,1781677748000,-151.0,0.00019187,2]
[425303517,1781677748000,-500.0,0.00019202,2]
[425303523,1781677748000,-500.0,0.00019202,2]
[425303519,1781677748000,-500.0,0.00019202,2]
[425303527,1781677748000,-456.03886142,0.00019202,2]
[425303524,1781677748000,-500.0,0.00019202,2]
[425303525,1781677748000,-500.0,0.00019202,2]
[425303518,1781677748000,-500.0,0.00019202,2]
[425303522,1781677748000,-500.0,0.00019202,2]
[425303521,1781677748000,-500.0,0.00019202,2]
[425303520,1781677748000,-500.0,0.00019202,2]
[425303526,1781677748000,-500.0,0.00019202,2]
[425303528,1781677773000,242.59,0.00030131,120]
[425303529,1781677797000,526.74298022,0.0003,120]
[425303549,1781677832000,-500.0,0.00019202,2]
[425303550,1781677832000,-500.0,0.00019202,2]
[425303551,1781677832000,-500.0,0.00019202,2]
[425303556,1781677832000,-500.0,0.00019202,2]
[425303558,1781677832000,-500.0,0.00019202,2]
[425303553,1781677832000,-500.0,0.00019202,2]
[425303557,1781677832000,-500.0,0.00019202,2]
[425303555,1781677832000,-500.0,0.00019202,2]
[425303554,1781677832000,-500.0,0.00019202,2]
[425303559,1781677832000,-500.0,0.00019202,2]
[425303548,1781677832000,-500.0,0.00019202,2]
[425303562,1781677832000,-500.0,0.00019202,2]
[425303560,1781677832000,-399.03360485,0.00019202,2]
[425303563,1781677832000,-500.0,0.00019202,2]
[425303552,1781677832000,-500.0,0.00019202,2]
[425303561,1781677832000,-500.0,0.00019202,2]
[425303545,1781677832000,-500.0,0.00019202,2]
[425303542,1781677832000,-151.0,0.00019181,2]
[425303530,1781677832000,-250.0,0.00019103,2]
[425303532,1781677832000,-152.0,0.00019103,2]
[425303531,1781677832000,-50.0,0.00019103,2]
[425303533,1781677832000,-150.0,0.00019104,2]
[425303534,1781677832000,-89.53948907,0.00019104,2]
[425303535,1781677832000,-1280.70784476,0.00019104,2]
[425303537,1781677832000,-2508.4611107,0.00019104,2]
[425303536,1781677832000,-2829.36617309,0.00019104,2]
[425303538,1781677832000,-1809.19730255,0.00019104,2]
[425303539,1781677832000,-44420.08807983,0.00019104,2]
[425303540,1781677832000,-600.0,0.00019142,2]
[425303541,1781677832000,-249.62435558,0.00019176,2]
[425303566,1781677832000,-500.0,0.00019202,2]
[425303544,1781677832000,-43.96113858,0.00019202,2]
[425303543,1781677832000,-151.0,0.00019189,2]
[425303547,1781677832000,-500.0,0.00019202,2]
[425303570,1781677832000,-500.0,0.00019202,2]
[425303546,1781677832000,-500.0,0.00019202,2]
[425303569,1781677832000,-500.0,0.00019202,2]
[425303586,1781677832000,-151.0,0.00019205,2]
[425303591,1781677832000,-151.0,0.00019205,2]
[425303589,1781677832000,-150.0,0.00019205,2]
[425303593,1781677832000,-151.0,0.00019205,2]
[425303590,1781677832000,-152.0,0.00019205,2]
[425303596,1781677832000,-151.0,0.00019205,2]
[425303588,1781677832000,-153.0,0.00019205,2]
[425303595,1781677832000,-153.0,0.00019205,2]
[425303594,1781677832000,-150.0,0.00019205,2]
[425303597,1781677832000,-201.878731,0.00019205,2]
[425303600,1781677832000,-250.0,0.000198,2]
[425303598,1781677832000,-2136.94,0.00019205,2]
[425303599,1781677832000,-600.0,0.000198,2]
[425303601,1781677832000,-9999.99,0.000198,2]
[425303602,1781677832000,-606.0,0.0002,2]
[425303587,1781677832000,-150.0,0.00019205,2]